bitfinex/quotes_ETHUSD_20250906
["timestamp","ask_amount","ask_price","bid_price","bid_amount"]
[1757146481418,1.258,4304.3,4304.2,28.12661335]
[1757146481606,1.258,4304.3,4304.2,31.97661335]
[1757146488119,1.258,4304.3,4304.2,13.45]
[1757146488395,1.95483579,4304.3,4304.2,17.301]
[1757146488620,2.3827347,4304.3,4304.2,13.45]
[1757146488817,4.27809392,4304.3,4304.2,17.301]
[1757146490733,1.95483579,4304.3,4304.2,17.301]
[1757146491495,4.27809392,4304.3,4304.2,17.301]
[1757146491831,1.95483579,4304.3,4304.2,17.301]
[1757146492031,2.61505182,4304.3,4304.2,17.301]
[1757146493091,4.93830995,4304.3,4304.2,17.301]
[1757146493896,2.61505182,4304.3,4304.2,17.301]
[1757146499546,1.35805182,4304.3,4304.2,17.301]
[1757146500048,0.69783579,4304.3,4304.2,17.301]
[1757146500244,1.12883579,4304.3,4304.2,17.301]
[1757146500446,1.41893579,4304.3,4304.2,17.301]
[1757146501027,1.90773579,4304.3,4304.2,17.301]
[1757146504219,1.41893579,4304.3,4304.2,17.301]
[1757146507214,0.69783579,4304.3,4304.2,17.5987]
[1757146507428,0.001,4304.3,4304.2,20.25507]
[1757146507656,0.001,4304.3,4304.2,20.95179898]
[1757146507962,0.001,4304.3,4304.2,37.77511109]
[1757146509046,0.001,4304.3,4304.2,35.45179898]
[1757146509225,0.001,4304.3,4304.2,33.25732898]
[1757146512448,0.001,4304.3,4304.2,35.58064109]
[1757146512851,0.001,4304.3,4304.2,36.02774109]
[1757146514762,0.001,4304.3,4304.2,35.58064109]
[1757146515060,0.001,4304.3,4304.2,36.02774109]
[1757146516959,0.001,4304.3,4304.2,66.02774109]
[1757146517154,0.001,4304.3,4304.2,69.02774109]
[1757146517354,10.001,4304.3,4304.2,69.02774109]
[1757146517670,10.001,4304.3,4304.2,68.58064109]
[1757146517870,10.001,4304.3,4304.2,65.17674109]
[1757146518178,10.001,4304.3,4304.2,69.02774109]
[1757146518474,10.001,4304.3,4304.2,68.57964109]
[1757146519833,10.001,4304.3,4304.2,64.72964109]
[1757146520033,10.001,4304.3,4304.2,68.57964109]
[1757146520547,10.001,4304.3,4304.2,64.72964109]
[1757146520753,10.001,4304.3,4304.2,68.57964109]
[1757146522575,10.001,4304.3,4304.2,68.11774109]
[1757146528683,10.001,4304.3,4304.2,67.82004109]
[1757146528981,10.001,4304.3,4304.2,68.60374109]
[1757146530283,10.001,4304.3,4304.2,64.75374109]
[1757146530481,10.001,4304.3,4304.2,68.60374109]
[1757146530773,10.001,4304.3,4304.2,64.75374109]
[1757146531081,10.001,4304.3,4304.2,68.60374109]
[1757146533782,10.001,4304.3,4304.2,68.13294109]
[1757146534079,10.001,4304.3,4304.2,67.82004109]
[1757146536808,10.001,4304.3,4304.2,68.13294109]
[1757146537475,10.001,4304.3,4304.2,68.60374109]
[1757146539361,10.001,4304.3,4304.2,69.05084109]
[1757146540605,10.001,4304.3,4304.2,68.60374109]
[1757146544668,10.2926,4304.3,4304.2,67.82004109]
[1757146544998,10.7653,4304.3,4304.2,67.82004109]
[1757146545963,10.2926,4304.3,4304.2,67.82004109]
[1757146548384,10.001,4304.3,4304.2,67.82004109]
[1757146552333,10.001,4304.3,4304.2,68.13174109]
[1757146553727,10.001,4304.3,4304.2,67.82004109]
[1757146559148,10.001,4304.3,4304.2,68.13174109]
[1757146559326,10.001,4304.3,4304.2,68.62584109]
[1757146559507,10.001,4304.3,4304.2,67.82004109]
[1757146560033,10.001,4304.3,4304.2,68.62584109]
[1757146560405,10.0,4304.3,4304.2,69.18894109]
[1757146560600,0.001,4304.6,4304.5,2.32315019]
[1757146560803,0.001,4304.6,4304.5,39.28815019]
[1757146561006,0.001,4304.6,4304.5,40.54105019]
[1757146561220,0.001,4304.6,4304.5,55.13391827]
[1757146562338,0.001,4304.6,4304.5,25.13391827]
[1757146562708,0.001,4304.6,4304.5,55.13391827]
[1757146565664,0.001,4304.6,4304.5,50.03201827]
[1757146565665,0.2926,4304.6,4304.5,50.03201827]
[1757146565843,0.7653,4304.6,4304.5,53.88101827]
[1757146566426,0.001,4304.6,4304.5,53.88101827]
[1757146567321,0.7653,4304.6,4304.5,53.88101827]
[1757146568209,0.7653,4304.6,4304.5,50.03201827]
[1757146568409,1.232,4304.6,4304.5,23.88001827]
[1757146568818,1.232,4304.6,4304.5,53.88001827]
[1757146569049,1.232,4304.6,4304.5,47.70886808]
[1757146569248,1.232,4304.6,4304.5,14.59286808]
[1757146569407,1.3599,4304.6,4304.5,18.348]
[1757146569613,1.3599,4304.6,4304.5,14.5]
[1757146569917,1.3599,4304.6,4304.5,3.848]
[1757146570127,3.68299789,4304.6,4304.5,3.848]
[1757146570322,3.68299789,4304.6,4304.3,0.004]
[1757146570323,2.1519,4304.6,4304.3,0.004]
[1757146570555,0.51986848,4304.5,4304.3,0.004]
[1757146570848,2.32320416,4304.4,4304.3,0.004]
[1757146571010,3.57750416,4304.4,4304.3,3.852]
[1757146577427,3.57750416,4304.4,4304.3,0.004]
[1757146577652,3.57750416,4304.4,4304.3,3.853]
[1757146584560,3.10380416,4304.4,4304.3,3.853]
[1757146584925,3.57750416,4304.4,4304.3,3.853]
[1757146585157,3.94824458,4304.4,4304.3,3.853]
[1757146586564,13.19912207,4304.4,4304.3,3.853]
[1757146587557,0.792,4304.2,4302.1,0.9613]
[1757146587768,2.32393268,4303.1,4302.6,1.708]
[1757146588083,0.473,4303.0,4302.6,1.708]
[1757146588486,0.473,4303.0,4302.7,14.5]
[1757146588671,0.473,4303.0,4302.8,3.849]
[1757146588873,0.473,4302.9,4302.8,3.849]
[1757146589178,0.7806,4302.9,4302.8,3.849]
[1757146590486,0.7806,4302.9,4302.7,14.5]
[1757146590644,0.3076,4302.9,4302.8,3.849]
[1757146591182,0.7806,4302.9,4302.8,3.849]
[1757146591544,0.7806,4302.9,4302.8,3.85]
[1757146595088,0.7806,4302.9,4302.6,1.708]
[1757146595288,0.473,4302.8,4302.7,3.85]
[1757146595586,0.7806,4302.8,4302.7,10.258]
[1757146596451,2.79692179,4303.1,4302.7,10.258]
[1757146596653,0.473,4303.0,4302.7,10.258]
[1757146596993,2.79696496,4303.0,4302.7,10.258]
[1757146597202,0.473,4302.9,4302.7,10.258]
[1757146597499,0.3076,4302.8,4302.7,10.258]
[1757146597789,0.7806,4302.8,4302.7,10.258]
[1757146599396,1.09106377,4302.8,4302.7,10.258]
[1757146600757,0.7806,4302.8,4302.7,10.258]
[1757146601307,3.11591601,4303.1,4302.7,10.5708]
[1757146601464,2.78886122,4303.0,4302.7,10.258]
[1757146601659,0.2978,4302.8,4302.7,10.258]
[1757146601984,0.7627,4302.8,4302.7,10.258]
[1757146604199,0.7627,4302.8,4302.7,6.408]
[1757146604200,7.91024854,4302.8,4302.7,6.408]
[1757146604497,7.91024854,4302.8,4302.7,10.258]
[1757146606685,7.43194854,4302.8,4302.7,10.258]
[1757146606886,3.0,4302.8,4302.7,10.5708]
[1757146607261,5.32406804,4302.8,4302.7,10.5708]
[1757146608061,3.0,4302.8,4302.7,10.5708]
[1757146608582,7.02,4303.2,4302.7,11.4978]
[1757146608781,9.34385996,4303.2,4302.8,0.4799]
[1757146609106,7.812,4303.2,4303.1,0.3128]
[1757146609312,7.812,4303.2,4303.1,4.1628]
[1757146609590,10.13585201,4303.2,4303.1,4.1628]
[1757146610898,7.02,4303.2,4303.1,4.1628]
[1757146612390,7.02,4303.2,4303.1,3.85]
[1757146612800,7.02,4303.2,4303.1,4.1628]
[1757146613779,7.02,4303.2,4303.1,3.85]
[1757146613976,9.34380463,4303.3,4303.1,3.85]
[1757146614310,10.02,4303.3,4303.2,0.3128]
[1757146614607,2.32375713,4303.4,4303.1,3.85]
[1757146614907,2.32380129,4303.3,4303.1,3.85]
[1757146617122,2.32380129,4303.3,4303.2,5.341]
[1757146618235,2.62160129,4303.3,4303.2,5.341]
[1757146618422,3.08650129,4303.3,4303.2,5.341]
[1757146619902,3.08650129,4303.3,4303.2,9.191]
[1757146620627,2.62160129,4303.3,4303.2,9.191]
[1757146620926,3.08650129,4303.3,4303.2,9.191]
[1757146621921,2.62160129,4303.3,4303.2,9.191]
[1757146622294,3.08650129,4303.3,4303.2,9.191]
[1757146626625,3.08650129,4303.3,4303.2,10.9]
[1757146627421,2.62160129,4303.3,4303.2,7.05]
[1757146627627,3.56480129,4303.3,4303.2,10.9]
[1757146627838,3.08650129,4303.3,4303.2,7.05]
[1757146628021,3.67535084,4303.3,4303.2,10.9]
[1757146628210,4.94565084,4303.3,4303.2,10.9]
[1757146634443,4.00245084,4303.3,4303.2,10.9]
[1757146634740,3.70465084,4303.3,4303.2,10.9]
[1757146635043,4.42915084,4303.3,4303.2,10.9]
[1757146636639,3.70465084,4303.3,4303.2,10.9]
[1757146637417,3.70465084,4303.3,4303.2,7.05]
[1757146637619,3.99245084,4303.3,4303.2,10.9]
[1757146637957,4.42915084,4303.3,4303.2,10.9]
[1757146638612,4.90225084,4303.3,4303.2,10.9]
[1757146638948,4.42915084,4303.3,4303.2,10.9]
[1757146642753,3.99345084,4303.3,4303.2,10.9]
[1757146642956,4.43015084,4303.3,4303.2,10.9]
[1757146644202,4.90325084,4303.3,4303.2,10.9]
[1757146644494,3.99345084,4303.3,4303.2,10.9]
[1757146644678,3.70565084,4303.3,4303.2,10.9]
[1757146645080,4.43015084,4303.3,4303.2,10.9]
[1757146646667,11.45015084,4303.3,4303.2,10.9]
[1757146647047,11.01345084,4303.3,4303.2,10.9]
[1757146647473,11.45015084,4303.3,4303.2,10.9]
[1757146664595,11.94435084,4303.3,4303.2,7.05]
[1757146664766,11.94435084,4303.3,4303.2,10.9]
[1757146665566,11.45015084,4303.3,4303.2,10.9]
[1757146666519,11.94435084,4303.3,4303.2,10.9]
[1757146667079,11.45015084,4303.3,4303.2,10.9]
[1757146669417,11.45015084,4303.3,4303.2,7.05]
[1757146669720,11.45015084,4303.3,4303.2,10.9]
[1757146670104,10.72565084,4303.3,4303.2,11.194]
[1757146670279,10.72565084,4303.3,4303.2,11.6623]
[1757146673029,10.72565084,4303.3,4303.2,11.194]
[1757146675226,10.72565084,4303.3,4303.2,10.9]
[1757146676411,10.72565084,4303.3,4303.2,10.9]
[1757146682935,11.49595084,4303.3,4303.2,10.9]
[1757146687736,11.02505084,4303.3,4303.2,10.9]
[1757146688052,11.49595084,4303.3,4303.2,10.9]
[1757146688830,11.02505084,4303.3,4303.2,10.9]
[1757146694190,10.43620129,4303.3,4303.2,11.1959]
[1757146694393,0.001,4303.3,4303.2,12.0988]
[1757146694686,0.001,4303.8,4303.2,12.0988]
[1757146694687,0.116,4303.4,4303.2,12.0988]
[1757146694979,0.116,4303.4,4303.3,3.22669801]
[1757146695277,0.116,4303.4,4303.3,19.40135205]
[1757146695482,0.116,4303.4,4303.3,19.69725205]
[1757146697152,0.117,4303.4,4303.3,19.69725205]
[1757146697750,0.001,4303.8,4303.4,0.3881655]
[1757146697989,0.001,4303.8,4303.7,2.43958203]
[1757146698300,0.001,4303.8,4303.7,36.58448203]
[1757146698451,0.001,4303.8,4303.7,39.58448203]
[1757146698647,0.001,4303.8,4303.7,12.16203607]
[1757146699051,0.001,4303.8,4303.7,42.16203607]
[1757146699348,0.001,4303.8,4303.7,42.25492874]
[1757146699567,0.001,4303.8,4303.7,56.75492874]
[1757146701146,0.001,4303.8,4303.7,56.93257154]
[1757146701396,0.001,4303.8,4303.7,57.21031884]
[1757146702751,0.001,4303.8,4303.7,27.21031884]
[1757146703070,0.001,4305.2,4304.5,2.32315019]
[1757146703275,0.001,4305.2,4304.5,10.87915019]
[1757146703487,0.001,4305.2,4304.5,12.07795019]
[1757146703781,0.001,4305.2,4304.5,56.57795019]
[1757146704978,0.001,4305.2,4304.5,56.67081115]
[1757146705181,0.001,4305.2,4304.5,58.34546519]
[1757146705382,0.001,4305.2,4304.5,68.12030675]
[1757146705569,0.001,4305.2,4304.5,73.14521249]
[1757146707549,0.001,4305.2,4304.5,70.36921249]
[1757146709412,0.001,4305.2,4304.5,70.09146519]
[1757146711088,0.001,4305.2,4304.5,40.09146519]
[1757146711397,0.001,4305.2,4304.5,56.63746519]
[1757146713167,0.001,4305.2,4304.5,56.75346519]
[1757146715361,0.001,4305.2,4304.5,65.93246519]
[1757146715578,0.001,4305.2,4304.5,72.97646519]
[1757146719401,0.001,4305.2,4304.5,70.20146519]
[1757146721395,0.001,4305.2,4304.5,58.46046519]
[1757146721600,0.001,4305.2,4304.5,56.75346519]
[1757146724015,0.001,4305.2,4304.5,56.30636519]
[1757146724378,0.001,4305.2,4304.5,26.30636519]
[1757146724925,0.001,4305.2,4304.5,56.30636519]
[1757146725532,0.001,4305.2,4304.5,72.52836519]
[1757146726526,0.474,4305.2,4304.5,72.52836519]
[1757146727422,0.474,4305.2,4304.5,42.52836519]
[1757146727627,0.4799,4305.2,4304.5,72.07256519]
[1757146727828,0.474,4305.1,4304.5,72.56066519]
[1757146729199,0.474,4305.1,4304.5,63.38166519]
[1757146731339,0.474,4305.1,4304.5,56.33866519]
[1757146734839,0.493,4304.9,4304.5,55.85056519]
[1757146735335,0.493,4304.9,4304.5,55.55466519]
[1757146735557,0.7735,4304.6,4304.5,64.92766519]
[1757146735740,1.2465,4304.6,4304.5,16.337]
[1757146735907,1.2465,4304.6,4304.5,20.183]
[1757146736718,1.2465,4304.6,4304.5,34.683]
[1757146737139,1.37585,4304.6,4304.5,1.707]
[1757146738255,1.37585,4304.6,4304.5,20.053]
[1757146738458,1.2465,4304.6,4304.5,20.053]
[1757146738759,1.2465,4304.6,4304.5,16.207]
[1757146738965,1.2465,4304.6,4304.5,20.053]
[1757146742126,1.2465,4304.6,4304.5,16.207]
[1757146742463,1.2465,4304.6,4304.5,20.053]
[1757146742630,1.60815364,4304.6,4304.5,20.053]
[1757146743863,1.2465,4304.6,4304.5,20.053]
[1757146745528,1.2465,4304.6,4304.5,17.295]
[1757146746943,1.2465,4304.6,4304.0,14.5]
[1757146746944,3.11536609,4304.1,4304.0,5.337]
[1757146747144,1.2455,4304.1,4304.0,10.891]
[1757146748233,1.94233579,4304.1,4304.0,10.891]
[1757146748755,4.26570188,4304.1,4304.0,10.891]
[1757146749348,0.02,4303.9,4303.5,0.17759887]
[1757146749553,0.2936,4303.6,4302.8,2.32405846]
[1757146749755,0.4496,4303.5,4302.9,30.0]
[1757146749964,0.4496,4303.4,4303.0,14.5]
[1757146750168,0.4496,4303.3,4303.1,30.0]
[1757146750371,0.7368,4303.2,4303.1,30.0]
[1757146750534,0.7368,4303.2,4303.1,3.863]
[1757146750953,0.7368,4303.2,4303.1,18.363]
[1757146753296,0.7368,4303.2,4303.1,18.367]
[1757146753779,0.7368,4303.2,4303.1,18.366]
[1757146755446,0.7368,4303.2,4303.1,31.818]
[1757146756888,0.8528,4303.2,4303.1,31.818]
[1757146757553,1.72784083,4303.2,4303.1,31.818]
[1757146758156,1.3405,4303.2,4303.1,31.818]
[1757146759913,3.66435201,4303.2,4303.1,31.818]
[1757146760116,1.3405,4303.2,4303.1,31.818]
[1757146761139,1.3405,4303.2,4303.1,31.819]
[1757146761602,0.8528,4303.2,4303.1,17.319]
[1757146764031,0.4032,4303.2,4303.1,17.319]
[1757146764431,0.8528,4303.2,4303.1,17.319]
[1757146764800,0.116,4303.2,4303.1,17.6087]
[1757146765433,0.116,4303.2,4303.1,32.1087]
[1757146766895,0.116,4303.2,4303.1,32.5891]
[1757146768742,0.4746,4303.8,4303.2,2.32380801]
[1757146768743,0.116,4303.5,4303.2,2.32380801]
[1757146769041,0.116,4303.5,4303.4,0.2897]
[1757146769416,0.116,4303.5,4303.4,14.7897]
[1757146779545,0.5656,4303.5,4303.4,14.5]
[1757146779848,0.4227,4303.5,4303.4,14.5]
[1757146780207,0.8792,4303.5,4303.4,14.5]
[1757146780406,0.4227,4303.5,4303.4,14.5]
[1757146781231,0.4227,4303.5,4303.4,16.208]
[1757146781419,0.116,4303.5,4303.4,16.208]
[1757146784052,0.8792,4303.5,4303.4,16.208]
[1757146785853,0.8792,4303.5,4303.4,21.547]
[1757146787443,0.116,4303.5,4303.4,21.8487]
[1757146788758,0.116,4303.5,4303.4,21.547]
[1757146789756,0.117,4303.5,4303.4,21.547]
[1757146790435,0.8802,4303.5,4303.4,21.547]
[1757146790756,1.3489,4303.5,4303.4,17.311]
[1757146792345,1.3489,4303.5,4303.4,13.454]
[1757146792528,1.3489,4303.5,4303.4,17.311]
[1757146792941,0.8802,4303.5,4303.4,17.311]
[1757146793459,1.3489,4303.5,4303.4,13.454]
[1757146793687,1.3489,4303.5,4303.4,17.311]
[1757146794262,0.8802,4303.5,4303.4,17.311]
[1757146794626,0.8802,4303.5,4303.4,31.811]
[1757146795867,0.117,4303.5,4303.4,34.88654401]
[1757146796026,0.117,4303.5,4303.4,35.33364401]
[1757146796226,0.117,4303.5,4303.4,33.0099]
[1757146796422,0.117,4303.5,4303.4,32.5628]
[1757146799692,0.117,4303.5,4303.4,33.0099]
[1757146800297,0.117,4303.5,4303.4,32.5628]
[1757146801486,0.117,4303.5,4303.4,34.88654401]
[1757146802284,0.117,4303.5,4303.4,32.5628]
[1757146802484,0.117,4303.5,4303.4,34.88654401]
[1757146804656,0.117,4303.5,4303.4,34.43644401]
[1757146805615,0.117,4303.5,4303.4,34.88654401]
[1757146806573,0.117,4303.5,4303.4,32.1127]
[1757146807019,0.4237,4303.5,4303.4,27.954]
[1757146807191,0.8802,4303.5,4303.4,31.809]
[1757146807596,0.8802,4303.5,4303.4,34.43444401]
[1757146807597,0.117,4303.5,4303.4,34.43444401]
[1757146808519,0.117,4303.5,4303.4,65.33164401]
[1757146808520,0.001,4303.5,4303.4,65.33164401]
[1757146809474,0.001,4303.5,4303.4,35.33164401]
[1757146809685,0.001,4303.5,4303.4,65.33164401]
[1757146810777,0.001,4303.5,4303.4,65.44764401]
[1757146813777,0.001,4303.5,4303.4,39.20164401]
[1757146813978,0.001,4303.5,4303.4,50.94764401]
[1757146814818,0.001,4303.5,4303.4,65.44764401]
[1757146815507,0.001,4303.5,4303.4,68.22364401]
[1757146816598,0.001,4303.5,4303.4,38.22364401]
[1757146816929,0.001,4303.5,4303.4,68.22364401]
[1757146817425,0.001,4303.5,4303.4,67.77654401]
[1757146820723,0.001,4303.5,4303.4,37.86944034]
[1757146820924,0.001,4303.5,4303.4,67.86944034]
[1757146821824,0.001,4303.5,4303.4,37.86944034]
[1757146822033,0.001,4303.5,4303.4,67.86944034]
[1757146823910,0.001,4303.5,4303.4,67.41934034]
[1757146827936,0.001,4303.5,4303.4,67.87874034]
[1757146828106,0.001,4303.5,4303.4,70.87874034]
[1757146828314,0.001,4303.5,4303.4,68.54984034]
[1757146830247,0.001,4303.5,4303.4,62.14284034]
[1757146834230,0.001,4303.5,4303.4,55.09584034]
[1757146835515,0.001,4303.5,4303.4,71.32384034]
[1757146838252,0.001,4303.5,4303.4,56.80384034]
[1757146838458,0.001,4303.5,4303.4,56.35674034]
[1757146840262,0.001,4303.5,4303.4,54.64874034]
[1757146842671,0.001,4303.5,4303.4,53.88764034]
[1757146842871,0.7198,4303.5,4303.4,53.88764034]
[1757146843467,0.001,4303.5,4303.4,53.88764034]
[1757146845464,0.001,4303.5,4303.4,70.11464034]
[1757146846359,0.001,4303.5,4303.4,40.11464034]
[1757146846561,0.001,4303.5,4303.4,70.11464034]
[1757146849074,0.001,4303.5,4303.4,60.93364034]
[1757146849240,0.001,4303.5,4303.4,61.22554034]
[1757146849652,0.001,4303.5,4303.4,60.93364034]
[1757146851490,0.001,4303.5,4303.4,30.93364034]
[1757146851689,0.001,4303.5,4303.4,60.93364034]
[1757146852093,0.7198,4303.5,4303.4,60.93364034]
[1757146852481,0.7198,4303.5,4303.4,30.93364034]
[1757146852790,0.2901,4303.5,4303.4,60.93364034]
[1757146852995,0.001,4303.5,4303.4,60.93364034]
[1757146853197,0.001,4303.5,4303.4,53.88764034]
[1757146855493,0.001,4303.5,4303.4,70.11364034]
[1757146856795,0.001,4303.5,4303.4,70.40554034]
[1757146856966,0.001,4303.5,4303.4,70.88764034]
[1757146857167,0.001,4303.5,4303.4,68.11264034]
[1757146859099,0.001,4304.0,4303.5,3.0]
[1757146859284,0.001,4304.0,4303.9,2.43947405]
[1757146859483,0.001,4304.0,4303.9,9.60360879]
[1757146859683,0.001,4304.0,4303.9,9.58037405]
[1757146859877,0.001,4304.0,4303.9,54.56247405]
[1757146860399,0.001,4304.0,4303.9,54.65535356]
[1757146862180,0.001,4304.0,4303.9,54.17325356]
[1757146862578,0.2901,4304.0,4303.9,53.88135356]
[1757146862773,0.7198,4304.0,4303.9,53.88135356]
[1757146862974,1.2034,4304.0,4303.9,53.88135356]
[1757146865378,1.2034,4304.0,4303.9,68.39935356]
[1757146865586,1.2034,4304.0,4303.9,70.10735356]
[1757146865789,1.2034,4304.0,4303.9,40.10735356]
[1757146866085,1.2034,4304.0,4303.9,70.10735356]
[1757146870008,1.2087,4304.0,4303.9,66.25835356]
[1757146870219,0.7251,4304.0,4303.9,70.10735356]
[1757146872119,0.7251,4304.0,4303.9,40.10735356]
[1757146872320,0.7251,4304.0,4303.9,70.10735356]
[1757146873082,0.7251,4304.0,4303.9,40.10735356]
[1757146873288,0.7251,4304.0,4303.9,70.10735356]
[1757146874722,0.2901,4304.0,4303.9,70.10735356]
[1757146875084,0.001,4304.0,4303.9,70.39385356]
[1757146875699,0.001,4304.0,4303.9,70.10735356]
[1757146876222,0.3098,4304.0,4303.9,70.10735356]
[1757146876390,0.7448,4304.0,4303.9,70.10735356]
[1757146878430,0.7448,4304.0,4303.9,40.10735356]
[1757146878730,0.7448,4304.0,4303.9,70.10735356]
[1757146879625,0.7448,4304.0,4303.9,40.10735356]
[1757146879831,0.7448,4304.0,4303.9,70.10735356]
[1757146886136,0.3098,4304.0,4303.9,70.10735356]
[1757146886304,0.001,4304.0,4303.9,70.10735356]
[1757146887148,0.001,4304.0,4303.9,71.33575356]
[1757146887950,1e-08,4304.6,4304.5,2.32315019]
[1757146888131,1e-08,4304.6,4304.5,36.17215019]
[1757146888463,1e-08,4304.6,4304.5,36.95345019]
[1757146888678,1e-08,4304.6,4304.5,51.5463103]
[1757146888831,1e-08,4304.6,4304.5,51.9934103]
[1757146890129,1e-08,4304.6,4304.5,51.5463103]
[1757146895169,1e-08,4304.6,4304.5,21.5463103]
[1757146895369,1e-08,4304.6,4304.5,30.7253103]
[1757146895588,1e-08,4304.6,4304.5,67.7693103]
[1757146896994,1e-08,4304.6,4304.5,58.5903103]
[1757146897156,1e-08,4304.6,4304.5,51.5463103]
[1757146897356,1e-08,4304.6,4304.5,51.9934103]
[1757146897953,1e-08,4304.6,4304.5,51.6623103]
[1757146899788,1e-08,4304.6,4304.5,51.8945103]
[1757146899960,1e-08,4304.6,4304.5,51.6623103]
[1757146904874,1e-08,4304.6,4304.5,54.6623103]
[1757146905171,0.021,4304.9,4304.8,2.32298829]
[1757146905172,1e-08,4304.9,4304.8,2.32298829]
[1757146905371,1e-08,4304.9,4304.8,48.48921817]
[1757146905597,1e-08,4304.9,4304.8,56.70878829]
[1757146905798,1e-08,4304.9,4304.8,71.20878829]
[1757146906188,1e-08,4304.9,4304.8,70.87778829]
[1757146906454,1e-08,4304.9,4304.8,59.13778829]
[1757146906716,1e-08,4304.9,4304.8,57.43078829]
[1757146909364,1e-08,4304.9,4304.8,27.43078829]
[1757146909566,1e-08,4304.9,4304.8,57.43078829]
[1757146909765,1e-08,4304.9,4304.8,56.98368829]
[1757146910669,1e-08,4304.9,4304.8,56.52278829]
[1757146914708,0.30310001,4304.9,4304.8,53.78598829]
[1757146914895,1.21150001,4304.9,4304.8,53.78598829]
[1757146915597,1.21150001,4304.9,4304.8,66.15898829]
[1757146915794,1.21150001,4304.9,4304.8,70.00598829]
[1757146916417,1.21150001,4304.9,4304.8,70.00998829]
[1757146916617,1.21150001,4304.9,4304.8,60.27298829]
[1757146916782,1.21150001,4304.9,4304.8,64.11998829]
[1757146916988,1.21150001,4304.9,4304.8,67.11998829]
[1757146921730,1e-08,4304.9,4304.8,67.11998829]
[1757146923295,1e-08,4304.9,4304.8,67.87268829]
[1757146923527,1e-08,4304.9,4304.8,61.46968829]
[1757146923724,1e-08,4304.9,4304.8,56.13368829]
[1757146925525,1e-08,4304.9,4304.8,70.64768829]
[1757146927844,1e-08,4304.9,4304.8,70.01098829]
[1757146929047,1e-08,4304.9,4304.8,70.30378829]
[1757146929643,1e-08,4304.9,4304.8,71.19908829]
[1757146929841,1e-08,4304.9,4304.8,56.68508829]
[1757146930043,1e-08,4304.9,4304.8,57.04490783]
[1757146930223,1e-08,4304.9,4304.8,54.54268829]
[1757146934140,1e-08,4304.9,4304.8,24.54268829]
[1757146934440,1e-08,4304.9,4304.8,54.54268829]
[1757146935549,1e-08,4304.9,4304.8,70.76268829]
[1757146936144,1e-08,4304.9,4304.8,67.98868829]
[1757146937366,1e-08,4304.9,4304.8,67.52878829]
[1757146937972,1e-08,4304.9,4304.8,55.78978829]
[1757146938183,1e-08,4304.9,4304.8,54.08278829]
[1757146941296,1e-08,4304.9,4304.8,24.08278829]
[1757146941439,1e-08,4304.9,4304.8,54.08278829]
[1757146944397,1e-08,4304.9,4304.8,24.08278829]
[1757146944597,1e-08,4304.9,4304.8,54.08278829]
[1757146945518,1e-08,4304.9,4304.8,70.00998829]
[1757146946265,1e-08,4304.9,4304.8,70.29518829]
[1757146946508,0.4704,4305.5,4304.8,70.29518829]
[1757146946509,0.4529,4305.7,4305.5,2.32261061]
[1757146946718,0.4529,4305.7,4305.5,39.40187167]
[1757146947082,0.4529,4305.7,4305.5,54.47077167]
[1757146947592,0.3043,4305.6,4305.5,54.47077167]
[1757146947811,0.7572,4305.6,4305.5,54.47077167]
[1757146948372,1.2266,4305.6,4305.5,50.62377167]
[1757146948608,1.2266,4305.6,4305.5,54.23851061]
[1757146949814,1.2266,4305.6,4305.5,50.39151061]
[1757146949978,1.2266,4305.6,4305.5,54.23851061]
[1757146951589,1.2266,4305.6,4305.5,24.23851061]
[1757146951992,1.2266,4305.6,4305.5,54.23851061]
[1757146953729,1.2266,4305.6,4305.5,24.23851061]
[1757146954241,1.2266,4305.6,4305.5,54.23851061]
[1757146955032,1.2266,4305.6,4305.5,55.94551061]
[1757146955397,1.2266,4305.6,4305.5,65.12251061]
[1757146961374,1.2266,4305.6,4305.5,70.45751061]
[1757146961732,1.2266,4305.6,4305.5,64.2879]
[1757146962089,1.2266,4305.6,4305.5,64.681]
[1757146962569,1.2266,4305.6,4305.5,67.00361061]
[1757146964799,1.2266,4305.6,4305.5,60.719]
[1757146964939,1.2266,4305.6,4305.5,64.565]
[1757146966796,1.35396,4305.6,4305.5,34.565]
[1757146969186,1.35396,4305.6,4305.5,30.719]
[1757146969374,2.14596,4305.6,4305.5,20.065]
[1757146969910,2.14596,4305.6,4305.5,20.069]
[1757146970566,2.14596,4305.6,4305.5,20.07]
[1757146985195,4.46851667,4305.6,4305.5,20.07]
[1757146986389,2.14596,4305.6,4305.5,20.07]
[1757146987976,4.46851667,4305.6,4305.5,20.07]
[1757146991738,4.46851667,4305.6,4305.5,16.223]
[1757146991936,4.46851667,4305.6,4305.5,20.07]
[1757146997971,4.46851667,4305.6,4305.5,17.296]
[1757146998174,3.99911667,4305.6,4305.5,17.296]
[1757146998703,7.47371667,4305.6,4305.5,17.296]
[1757146998922,7.47371667,4305.6,4305.5,13.449]
[1757146999084,7.58892584,4305.6,4305.5,17.296]
[1757146999403,8.17042623,4305.6,4305.5,17.296]
[1757146999782,12.780256,4305.6,4305.5,17.296]
[1757147000218,12.89787701,4305.6,4305.5,17.296]
[1757147001507,12.89787701,4305.6,4305.5,13.449]
[1757147001707,12.89787701,4305.6,4304.8,0.004]
[1757147001708,0.792,4305.4,4303.4,0.004]